Cogmind - Beta 16 --- EXPLORER MODE // 2025.11.12 @ 16:37:22 Player: K.K.Y. Result: Destroyed by G-47 Trooper with Particle Gun Performance ------------- Evolutions (0) 0 Regions Visited (1) 200 Robots Destroyed (17) 85 Value Destroyed (501) 501 Prototype IDs (0) 0 Alien Tech Used (0) 0 Bonus (0) 0 TOTAL SCORE: 786 Bonus ------- None Cogmind --------- Core Integrity 0/250 Matter 274/300 Energy 100/100 System Corruption 1% Temperature Cool (15) Movement Core (200) Ox3 Location -10/Materials Parts ------- > --- POWER (1) -------- (None) > --- PROPULSION (2) --- (None) > --- UTILITY (3) ------ Medium Storage Unit > --- WEAPON (2) ------- (None) > --- INVENTORY (10) --- Targeting Computer Peak State ------------ > --- POWER ------------ Ion Engine > --- PROPULSION ------- Aluminum Leg Aluminum Leg > --- UTILITY ---------- Medium Storage Unit Terrain Scanner > --- WEAPON ----------- Small Laser Light Assault Rifle > --- INVENTORY -------- Targeting Computer [Rating: 7] Favorites ----------- Power Ion Engine Engine Ion Engine Propulsion Aluminum Leg Leg Aluminum Leg Utility Medium Storage Unit Device Terrain Scanner Storage Medium Storage Unit Weapon Small Laser Energy Gun Small Laser Ballistic Gun Light Assault Rifle Build | -11 -10 ------- Run | Yrd Mat Slots Evolved 1 | . 1 Power . | . . Propulsion . | . . Utility 1 | . 1 Weapon . | . . Parts Attached 10 | 7 3 Power 2 | 1 1 Engine 2 | 1 1 Core . | . . Reactor . | . . Propulsion 2 | 2 . Treads . | . . Leg 2 | 2 . Wheel . | . . Hover . | . . Flight . | . . Utility 2 | 2 . Device 1 | 1 . Storage 1 | 1 . Processor . | . . Hackware . | . . Protection . | . . Artifact . | . . Weapon 4 | 2 2 Energy Gun 2 | 1 1 Energy Cannon . | . . Ballistic Gun 2 | 1 1 Ballistic Cannon . | . . Launcher . | . . Special Weapon . | . . Impact Weapon . | . . Slashing Weapon . | . . Piercing Weapon . | . . Special Melee Weapon . | . . Unidentified Prototypes . | . . Parts Lost 8 | . 8 Power 2 | . 2 Propulsion 2 | . 2 Utility 1 | . 1 Weapon 3 | . 3 Highest Loss Streak 4 | . 4 To Critical Strikes . | . . Average Backups 1 | 1 1 Power . | . . Propulsion . | . . Utility . | . 1 Weapon . | . . Tool/Special . | . . Unused Backups 1 | . 1 Power . | . . Propulsion . | . . Utility 1 | . 1 Weapon . | . . Tool/Special . | . . Average Slot Usage (%) 72 | . 72 Engine 8 | . 8 Leg 19 | . 19 Device 9 | . 9 Storage 12 | . 12 Energy Gun 12 | . 12 Ballistic Gun 8 | . 8 Peak Build Rating 7 | 7 7 Average Rating 5 | 5 5 On Entrance 3 | . 7 Avg Prop Armor Cover (%) . | . . Naked Turns . | . . Heaviest Build 19 | 18 19 Greatest Support 20 | 20 20 Greatest Overweight (x) 5 | . 5 Average Overweight (x) . | . . Largest Inventory Capacity 10 | 10 10 Average Capacity 9 | 8 10 Most Carried 5 | 5 3 Average Carried 1 | 1 1 Final Capacity 10 | 10 10 Final Carried 1 | 1 1 Class Distribution -------------------- 100% | Hacker-Mutant Dominant Class ---------------- Hacker-Mutant | -10/Materials Resources | -11 -10 ----------- Run | Yrd Mat Matter Collected 323 | 192 131 Remotely . | . . Salvage Created 670 | . 670 Parts 42 | . 42 Haulers Intercepted 1 | . 1 Recyclers Shooed 1 | . 1 Parts Field Recycled . | . . Retrieved Matter . | . . Parts Self-Destructed . | . . Prevented . | . . Parts Restored . | . . Kills | -11 -10 ------- Run | Yrd Mat Combat Hostiles Destroyed 12 | . 12 Guns 11 | . 11 Classes Destroyed 5 | . 5 Worker 2 | . 2 Hauler 1 | . 1 Watcher 2 | . 2 Grunt 9 | . 9 Subdweller 3 | . 3 Best Kill Streak 5 | . 5 Combat Bots Only 4 | . 4 Max Kills in Single Turn 1 | . 1 Gunslinging . | . . Exploded . | . . Melee . | . . Uniques/NPCs Destroyed . | . . Combat | -11 -10 -------- Run | Yrd Mat Hostile Shots Fired 115 | . 115 Missed 24 | . 24 Hits 91 | . 91 Projectile 91 | . 91 AOE 3 | . 3 Critical Strikes 1 | . 1 Damage Taken 887 | . 887 Core 251 | . 251 Absorbed by Shields . | . . Ignored by Resistances 545 | . 545 Core Remaining (%) 100 | 100 . Volleys Fired 70 | . 70 Largest 2 | . 2 Hottest 80 | . 80 Shots Fired 132 | . 132 Gun 132 | . 132 Cannon . | . . Launcher . | . . Special . | . . Kinetic 46 | . 46 Thermal 64 | . 64 Explosive . | . . Electromagnetic 22 | . 22 Robot Hit Streak 43 | . 43 Robot Miss Streak 1 | . 1 Penetration Max . | . . Secondary Targets 2 | . 2 Max Gunslinging Chain 1 | . 1 Shots Hit Robots 116 | . 116 Core Hits 36 | . 36 Critical Kills 1 | . 1 Critical Parts Destroyed . | . . Critical Strikes 1 | . 1 Destroy 1 | . 1 Melee Attacks . | . . Impact . | . . Slashing . | . . Piercing . | . . Sneak Attacks . | . . Combat Hostiles . | . . Follow-up Attacks . | . . Damage Inflicted 1373 | . 1373 Guns 1283 | . 1283 Cannons . | . . Explosions 85 | . 85 Melee . | . . Ramming 5 | . 5 Kinetic 393 | . 393 Thermal 713 | . 713 Explosive . | . . Electromagnetic 262 | . 262 Impact . | . . Slashing . | . . Piercing . | . . Highest Corruption 1 | . 1 Average Corruption 1 | . 1 Corruption Purged . | . . Corruption Blocked . | . . Overload Shots . | . . Overflow Damage . | . . Projectiles . | . . Explosions . | . . Melee . | . . Knockbacks . | . . Impact . | . . Kinetic . | . . Secondary . | . . Self-Inflicted Damage 19 | . 19 Shots 1 | . 1 Rammed 2 | . 2 Targets Rammed 3 | . 3 Kicked 1 | . 1 Crushed . | . . Highest Temperature 282 | . 282 Average Temperature 103 | . 103 Received Heat Transfer 564 | . 564 Siege Activations . | . . Martial Activations . | . . Shielding Activations . | . . Robots Disrupted . | . . Combat Hostiles . | . . Robots Corrupted . | . . Combat Hostiles . | . . Parts Fried . | . . Impact Corruptions . | . . Robots Melted 1 | . 1 Combat Hostiles 1 | . 1 Parts Melted 1 | . 1 Heat Transferred 1525 | . 1525 Parts Sabotaged . | . . Parts Stolen . | . . Parts Stripped . | . . Power Chain Reactions 1 | . 1 Alert | -11 -10 ------- Run | Yrd Mat Maximum Alert Level . | . . Low Security (%) 100 | 100 100 Level 1 . | . . Level 2 . | . . Level 3 . | . . Level 4 . | . . Level 5 . | . . High Security . | . . Max Security . | . . Peak Influence 97 | . 97 Initial . | . . Average 15 | . 16 Influence Increases 243 | . 243 Destroy 0b10 Robot/C 180 | . 180 Destroy 0b10 Robot/NC 25 | . 25 Destroy Leader 36 | . 36 Destroy Structure 2 | . 2 Influence Decreases 243 | . 243 Time Decay 223 | . 223 Lost Part 20 | . 20 Squads Dispatched . | . . Investigation . | . . Extermination . | . . Reinforcement . | . . Assault . | . . Garrison . | . . Intercept . | . . Searches Triggered . | . . Construction Impeded . | . . Haulers Reinforced . | . . Active Scanning Responses . | . . Cargo Convoy Interrupts . | . . Stealth | -11 -10 --------- Run | Yrd Mat Distress Signals 2 | . 2 Communications Jammed . | . . Distress Signals . | . . Times Spotted 24 | . 24 Peak Tracking Total 4 | . 4 Tactical Retreats 1 | . 1 Traps | -11 -10 ------- Run | Yrd Mat Traps Triggered . | . . Indirectly . | . . Trap Hack Attempts . | . . Triggered . | . . Disarmed . | . . Reprogrammed . | . . Reused . | . . Traps Extracted . | . . Installed . | . . Triggered . | . . Machines | -11 -10 ---------- Run | Yrd Mat Machines Disabled . | . . Max in Single Turn . | . . Machines Repaired . | . . Machines Dismantled . | . . Machines Sabotaged . | . . Overloaded Fab Kills . | . . Hacking | -11 -10 --------- Run | Yrd Mat Machines Accessed 1 | . 1 Terminals . | . . Fabricators . | . . Repair Stations . | . . Recycling Units 1 | . 1 Scanalyzers . | . . Garrison Access . | . . Total Hacks 4 | . 4 Successful 1 | . 1 Failed 3 | . 3 Catastrophic . | . . Database Lockouts . | . . Manual . | . . Terminals . | . . Fabricators . | . . Repair Stations . | . . Recycling Units 4 | . 4 Scanalyzers . | . . Garrison Access . | . . Terminal Hacks . | . . Fabricator Hacks . | . . Repair Station Hacks . | . . Recycling Unit Hacks 1 | . 1 Retrieve Components 1 | . 1 Scanalyzer . | . . Garrison Access Hacks . | . . Unauthorized Hacks . | . . Terminals . | . . Fabricators . | . . Repair Stations . | . . Recycling Units . | . . Scanalyzers . | . . Garrison Access . | . . Data Cores Recovered . | . . Used . | . . Hacking Detections 1 | . 1 Full Trace Events 1 | . 1 Feedback Events . | . . Feedback Blocked . | . . Robot Schematics Acquired . | . . Robots Built . | . . Authchips . | . . Time . | . . Total Robot Build Rating . | . . Part Schematics Acquired . | . . Parts Built . | . . Authchips . | . . Time . | . . Total Part Build Rating . | . . Part Studies Acquired . | . . Parts Repaired . | . . Time . | . . Parts Recycled . | . . Recycled Matter . | . . Retrieved Matter . | . . Retrieved Components 1 | . 1 Parts Scanalyzed . | . . Part Schematics Acquired . | . . Parts Damaged . | . . Bothacking | -11 -10 ------------ Run | Yrd Mat Used RIF Installer . | . . Robots Hacked . | . . Non-combat . | . . Combat . | . . Robot Hacks Applied . | . . Relay Couplers Released . | . . Fabnet Peak Effective % . | . . Robots Rewired . | . . Allies Hacked . | . . Hacks Repelled . | . . Allies | -11 -10 -------- Run | Yrd Mat Total Allies . | . . Largest Group . | . . Highest-Rated Group . | . . Highest-Rated Ally . | . . Total Orders . | . . Ally Attacks . | . . Total Damage . | . . Kills . | . . Allies Corrupted . | . . Allies Melted . | . . Intel | -11 -10 ------- Run | Yrd Mat Active Infowar (turns) 603 | 55 548 Terrain 603 | 55 548 Robot Analysis Total . | . . Derelict Logs Recovered . | . . Drone Launches . | . . Drone Recoveries . | . . Exploration | -11 -10 ------------- Run | Yrd Mat Turns Passed 771 | 72 699 Spaces Moved 385 | 57 328 Core 63 | 15 48 Treads . | . . Legs 322 | 42 280 Wheels . | . . Hover . | . . Flight . | . . Fastest Speed 50 | 50 120 Average Speed 137 | 101 144 Slowest Speed 300 | 120 300 Overloaded Moves . | . . Propulsion Burnouts . | . . Robots Hopped . | . . Potential Cave-ins . | . . Cave-ins Triggered . | . . Exploration Rate (%) 28 | 4 52 Regions Visited 1 Branch Regions . Pre-discovered Areas . | . . Known Exits Taken 1 | 1 . Unknown Exits Taken . | . . Scrap Searched . | . . Spaces Dug . | . . Terrain Destroyed 3 | . 3 Melee . | . . Projectile . | . . AOE 3 | . 3 Terrain Rammed . | . . Walls Destroyed . | . . Machines Disabled . | . . Actions | -11 -10 --------- Run | Yrd Mat Total 497 | 70 427 Wait 17 | . 17 Move 384 | 56 328 Hop . | . . Pick Up 10 | 7 3 Fast Attach 1 | 1 . Attach 9 | 6 3 Detach 1 | . 1 Swap 1 | . 1 Drop 1 | . 1 Fire 70 | . 70 Melee . | . . Ram 2 | . 2 Kick 1 | . 1 Crush . | . . Escape Stasis . | . . Rewire . | . . Trap . | . . Miscellaneous . | . . Route ------- -11/Scrapyard -10/Materials (discovered 3 exits: *Min x2 / *Sub) History --------- Turn | Location | Event 6 | -11/Scrapyard | Identified exit to Materials 6 | -11/Scrapyard | Discovered exit to Materials (range 16) 73 | -11/Scrapyard | Entered Materials 73 | -10/Materials | Evolved 1 slot: Utility x1 245 | -10/Materials | Identified exit to Mines 245 | -10/Materials | Discovered exit to Mines (range 9) 304 | -10/Materials | Build established: Hacker-Mutant 483 | -10/Materials | Discovered exit to Mines (range 15) 573 | -10/Materials | Derelicts attacked the area 621 | -10/Materials | Identified exit to Subcaves 621 | -10/Materials | Discovered exit to Subcaves (range 11) 626 | -10/Materials | Core integrity fell below 50% 656 | -10/Materials | Lost 4 parts (2n1u1w) 769 | -10/Materials | Core integrity fell below 20% 772 | -10/Materials | Destroyed by G-47 Trooper with Particle Gun Last Messages --------------- 00688_ U-05 Engineer builds a Wall. 00688_ U-05 Engineer lays Concrete. 00690_ U-05 Engineer builds a Wall. 00693_ U-05 Engineer lays Concrete. 00694_ U-05 Engineer builds a Wall. 00694_ U-05 Engineer lays Concrete. 00699_ U-05 Engineer builds a Door. 00700_ U-05 Engineer lays Concrete. 00704_ U-05 Engineer builds a Wall. 00708_ U-05 Engineer lays Concrete. 00708_ U-05 Engineer builds a Wall. 00709_ U-05 Engineer lays Concrete. 00712_ U-05 Engineer builds a Wall. 00718_ U-05 Engineer lays Concrete. 00721_ U-05 Engineer builds a Wall. 00746_ Assault Rifle destroyed. 00750_ Ion Engine destroyed. 00761_ Slammed into G-47 Trooper. 00761_ Destabilizing: System corrupted (+1). 00763_ Slammed into G-47 Trooper. Map ----- +----------------------------------------------------+ | ?????????????? ? ??????# ! #????????????? | | ?????????????? ? ?????"# #?#???#??????? | | ??????????????? ???????# """ """ #??#?????????? | | ???????????????# ?#?????# """ """ ##?????#?????? | | ???????????????# ???? ??# """|""" #????????????? | | ???????????????# ??? ??# =|%|* #????????????? | | ???????????????# ##??#######+###############??? | | ???????????????# ??#?# | + #??? | | ???????????????# ##### ##### #??? | | ???????????????# #???# """ #??? | | ???????????????# ######?#?# """"" #??? | | ???????????????# """ #?####?### """"" #??? | | ???????????????# """ # ??????# """"" !#??? | | ????????????#??# """ # "Y" ???# """ ?????? | | ???????????????# % + """ ???# ??????? | | ???????????????# % # # ?????? | | ???????????????# % ###############+### | | ???????????????# T | | ????????????#?## | | ???????????????# | | ???????????????# """ """ """ """ """ """ # | | ??????????????## """ """ """ """ """ """ # | | ???????????????# """ """ """ %""" """ """ # | | ???????????????# % # | | ???????????????# gg % % # | | ????????????#??# @ ##+########## # | | ???????????????# #### ## #?#??## # | | ????????????#??# #""" # #??#?## # | | ???????????????# #" # #??#### # | | ???????????????# #"! # #?#?#?# # | | ???????????????# #"" > # ##?#??# %% | | ???????????????# #"! # ##?#?##[ % | | ???????????????# #" # #???#?#% | | ???????????????# ^ #" # ##??#?#* | | ???????????????# ^ #### ## """#?# ##= | | ??????????????## ## # # ####=%%!= | | ???????????????######## # k/ "##!!%== ###### | | ??????????????????????# # # "#! =[= #????# | | ??????????????????????# # # "#! *=[ #????# | | ??????????????????????# # "#! #????# | | ??????????????????????# " # "#! ###### | | ??????????????????####### """###! # | | ?????????????????# ?# """""""###### # """ | | ?????????????????#! """ # # ##??# # """ | | ?????????????????# """ # #! """ #???# # """ | | ?????????????????# """ # # """ ##??# # | | ?????????????????# + + """ #???# # """ | | ???????????????#?# # # ! #?#?# + """ | | ????????????????######### ##########??# # """ | | ???????????????????????# !*& #????????### # | +----------------------------------------------------+ Best States ------------- Heat Dissipation 25 Energy Generation 10 Energy Capacity 250 Matter Stores 300 Matter Capacity 300 Sight Range 16 Terrain Scan Range 14 Terrain Scan Density 10 Resistance: KI 35 Resistance: TH 35 Resistance: EX 35 Resistance: EM 35 Resistance: I 35 Resistance: S 35 Resistance: P 35 Evasion (%) 55 Offensive Hacking 20 Item Schematics ----------------- None Robot Schematics ------------------ None Fabricated ------------ Nothing Repaired ---------- Nothing Studied --------- None Alien Tech Used ----------------- None Achievements -------------- None Challenges ------------ None Game ------ Seed XenonCoolingKinecellerator Manual? 0 Play Time 00:05:40 Cumulative 81.0 hours Start 2025.11.12 @ 16:32:16 End 2025.11.12 @ 16:37:22 Sessions 1 Manual Loads 0 Difficulty Explorer Special Mode None Game No. 77 Rogue 0 Adventurer 0 Explorer 77 Win Type - Total 0 Types 0/0/0/0/0/0/0/0/0/0 Lore% 52 Gallery% 55 Achievement% 42 Wizard Run 0 Options --------- Layout 1 ASCII 0 Keyboard 0 Movement Mouse Keybinds 0 Fullscreen 1 Font 24/Smallcaps Map View 50x35 Zoom Use 0% Tactical HUD 1 Map Filters NONE Filters NONE Steam 1 RUN: 5928926e-25b7-45c4-b75d-38571004e240